{"text_format":"1","workbook":"xlsx","n_sheets":4,"sheets":["Eingabe","Ergebnisse","Dropdown usw.","Berechnungen"],"not_rendered":{"charts":0,"images":0,"macros":1,"external_links":0,"defined_names":17,"comments":1,"pivot_tables":0},"unopened":[],"bounds":{"document_bytes":16777216,"sheet_cells":100000,"rows_first":2000,"rows_last":500,"rows_between":2000,"halvings":0,"cell_chars":16384,"cell_head_chars":4096},"cells_cut":0,"cells_raw":0,"read":"whole","date_system":"1900"}

{"sheet":"Eingabe","index":0,"n_rows":76,"n_cols":3,"rows_kept":76,"cut":false,"hidden":false,"merged":[[78,0,78,1],[0,0,0,1],[46,0,46,1],[72,0,72,1]]}
["Berechnungshilfe zur Ermittlung inländischer Reisekosten nach dem LRKG RLP"]
[null,null,{"$f":"Berechnungen!B42","v":1}]
["Angaben zum Reisenden",null,{"$f":"Berechnungen!B43","v":1}]
["Name",null,{"$f":"Berechnungen!B44","v":1}]
["Vorname"]
["Geb.Datum"]
["Reisende/r befindet sich in Ausbildung:"]
[]
["Zeitraum der Reise"]
["Abfahrtstag"]
["Uhrzeit"]
[]
["Ankunftstag"]
["Uhrzeit"]
[]
["Eckdaten zur Reise"]
["Reisegrund"]
["Regulärer Dienstort"]
["Abfahrtsort"]
["Ankunfstort"]
["Reiseziel"]
["Hat eine Übernachtung stattgefunden?"]
[{"$f":"IF(B13<43146,'Dropdown usw.'!L2,'Dropdown usw.'!L3)","v":"Reiseziel am Dienst-/Wohnort?"}]
["Reiseziel am Wohnort?"]
["Verzicht auf Tagegeld"]
[]
["Wegstrecke"]
["Genutztes Beförderungsmittel:"]
["Gefahrene Wegstrecke (in KM)"]
["Mitnahme von Gepäck >35 KG"]
[]
["Anzahl Mitfahrer"]
["Wegstrecke mit Mitfahrer (in KM)"]
[]
["Belege"]
["Belegeart","Wert"]
[]
[]
[]
[]
["Hotelkosten"]
["Ist die Rechnung auf den AG ausgestellt?"]
["Frühstücksanteil gesondert ausgewiesen?"]
[{"$f":"IF(B43=\"Ja\",'Dropdown usw.'!L4,'Dropdown usw.'!L5)","v":"Hotelkosten Übernachtungsanteil inkl. Frühstück"}]
["Hotelkosten Frühstücksanteil"]
[]
["Arbeitgeberveranlasste unentgeltliche Verpflegung"]
["Datum",{"$f":"B10","v":"00:00:00"}]
["Frühstück","Nein"]
["Mittagessen","Nein"]
["Abendessen","Nein"]
[]
["Datum",{"$f":"B48+1","v":"1900-01-01"}]
["Frühstück","Nein"]
["Mittagessen","Nein"]
["Abendessen","Nein"]
[]
["Datum",{"$f":"B53+1","v":"1900-01-02"}]
["Frühstück","Nein"]
["Mittagessen","Nein"]
["Abendessen","Nein"]
[]
["Datum",{"$f":"B58+1","v":"1900-01-03"}]
["Frühstück","Nein"]
["Mittagessen","Nein"]
["Abendessen","Nein"]
[]
["Datum",{"$f":"B63+1","v":"1900-01-04"}]
["Frühstück","Nein"]
["Mittagessen","Nein"]
["Abendessen","Nein"]
[]
["Bankverbindung des Reisenden"]
["Kontoinhaber",{"$f":"CONCATENATE(B5,\" \",B4)","v":" "}]
["IBAN"]
["BIC"]

{"sheet":"Ergebnisse","index":1,"n_rows":46,"n_cols":4,"rows_kept":46,"cut":false,"hidden":false,"merged":[[40,1,40,3],[42,1,42,3],[45,2,45,3],[33,1,33,3],[36,1,36,3],[37,1,37,3],[38,1,38,3],[39,1,39,3],[0,0,0,3],[2,1,2,3],[3,1,3,3],[4,1,4,3],[7,1,7,3],[8,1,8,3],[9,1,9,3],[11,1,11,3],[31,1,31,3],[32,1,32,3]]}
["Reisekostenermittlung für"]
[]
["Name:",{"$f":"Eingabe!B4","v":0}]
["Vorname:",{"$f":"Eingabe!B5","v":0}]
["Geb.Datum:",{"$f":"Eingabe!B6","v":"00:00:00"}]
[]
["Reisedaten"]
["Reisegrund",{"$f":"Eingabe!B17","v":0}]
["Reiseziel:",{"$f":"Eingabe!B21","v":0}]
["Abfahrtsort:",{"$f":"Eingabe!B19","v":0}]
["Reise vom:",{"$f":"Eingabe!B10","v":"00:00:00"},{"$f":"Eingabe!B11","v":"00:00:00"},"Uhr"]
["Ankunfstort:",{"$f":"Eingabe!B20","v":0}]
["Reise bis:",{"$f":"Eingabe!B13","v":"00:00:00"},{"$f":"Eingabe!B14","v":"00:00:00"},"Uhr"]
[]
["Reisekosten"]
[]
["Verpflegungskosten"]
["Verpflegungsaufwendungen:",{"$f":"Berechnungen!D40","v":0}]
["Abzüge durch kostenfreie Mahlzeiten:",{"$f":"IF(Eingabe!B25=\"Ja\",0,Berechnungen!D39)","v":0}]
[]
["Fahrtkosten"]
["Wegstreckenentschädigung:",{"$f":"Berechnungen!B8","v":0}]
["Mitnahmeentschädigung:",{"$f":"Berechnungen!B10","v":0}]
["Gepäckentschädigung:",{"$f":"Berechnungen!B9","v":0}]
[]
["Sonstiges"]
["Belege",{"$f":"SUM(Eingabe!B37:B39)","v":0}]
["Übernachtungskosten",{"$f":"IF(Eingabe!B25=\"Ja\",Berechnungen!B14+Berechnungen!D39,Berechnungen!B14)","v":0}]
[]
["Bankverbindung für Reisekostenüberweisung"]
[]
["Kontoinhaber",{"$f":"Eingabe!B74","v":" "}]
["IBAN",{"$f":"Eingabe!B75","v":0}]
["BIC",{"$f":"Eingabe!B76","v":0}]
[]
["Haushaltsstelle"]
["Kapitel"]
["Titel"]
["Untertitel"]
["Bewirtschafter"]
["Abrechnungsschlüssel"]
[]
["Summe Reisekosten",{"$f":"SUM(B27:B28,B22:B24,B18:B19)","v":0}]
[]
[]
[null,null,{"$f":"TODAY()","v":"2023-08-07"}]

{"sheet":"Dropdown usw.","index":2,"n_rows":26,"n_cols":12,"rows_kept":26,"cut":false,"hidden":true,"merged":[[0,0,0,1],[0,3,0,4],[0,5,0,6],[0,8,0,10]]}
["Tagegelder",null,"Dropdown","Beförderungsmittel",null,"Gepäck",null,"Belege","Abzüge",null,null,"Textdatei"]
[0.33333333333333331,8,"Ja","Dienst-KFZ",0,null,null,"Bahn",8,{"$f":"I2&\"F\"","v":"8F"},2,"Reiseziel am Dienst-/Wohnort?"]
[0.58263888888888882,14,"Nein","Privater PKW ohne triftigen Grund",0.18,">35 KG",0.02,"Bus",8,{"$f":"I3&\"AM\"","v":"8AM"},3.8,"Reiseziel am Dienstort?"]
[1,24,null,"Privater PKW mit triftigen Grund",0.28000000000000003,">100 KG",0.04,"Flug",8,{"$f":"I4&\"GT\"","v":"8GT"},9.6,"Hotelkosten Übernachtungsanteil"]
["DG",2.0499999999999998,null,"PKW mit Anerkennung",0.38,">35 KG",0.01,"Gepäck, Transport/Aufbewahr.",14,{"$f":"I5&\"F\"","v":"14F"},2.8,"Hotelkosten Übernachtungsanteil inkl. Frühstück"]
[0.66666666666666663,null,null,"PKW mit Vereinbarung",0.33,">100 KG",0.02,"Mietwagen",14,{"$f":"I6&\"AM\"","v":"14AM"},5.6]
[0.33333333333333331,null,null,"Fahrrad",0.05,null,null,"Nebenkosten",14,{"$f":"I7&\"GT\"","v":"14GT"},14]
[null,null,null,"Motarrad ohne triftigen Grund",0.1,null,null,"Parkgebühr",24,{"$f":"I8&\"F\"","v":"24F"},4.8]
[null,null,null,"Motarrad mit triftigen Grund",0.15,null,null,"Straßenbahn",24,{"$f":"I9&\"AM\"","v":"24AM"},9.6]
[null,null,null,"Motorrad mit Anerkennung",0.2,null,null,"Telefon",24,{"$f":"I10&\"GT\"","v":"24GT"},24]
[null,null,null,"Motorrad mit Vereinbarung",0.17,null,null,null,5.6,{"$f":"I11&\"F\"","v":"5,6F"},2]
[null,null,null,"Öffentliche Verkehrsmittel",0,null,null,null,5.6,{"$f":"I12&\"AM\"","v":"5,6AM"},3.8]
[null,null,null,"Flugzeug",0,null,null,null,5.6,{"$f":"I13&\"GT\"","v":"5,6GT"},9.6]
[null,null,null,"Mitnahme durch Reisenden",0,null,null,null,9.8000000000000007,{"$f":"I14&\"F\"","v":"9,8F"},2]
[null,null,null,null,null,null,null,null,9.8000000000000007,{"$f":"I15&\"AM\"","v":"9,8AM"},3.8]
[null,null,null,null,null,null,null,null,9.8000000000000007,{"$f":"I16&\"GT\"","v":"9,8GT"},9.6]
[null,null,null,null,null,null,null,null,16.8,{"$f":"I17&\"F\"","v":"16,8F"},3.36]
[null,null,null,null,null,null,null,null,16.8,{"$f":"I18&\"AM\"","v":"16,8AM"},6.72]
[null,null,null,null,null,null,null,null,16.8,{"$f":"I19&\"GT\"","v":"16,8GT"},16.8]
[null,null,null,null,null,null,null,null,0,0,0]
[null,null,null,null,null,null,null,null,2.0499999999999998,{"$f":"I21&\"F\"","v":"2,05F"},2]
[null,null,null,null,null,null,null,null,2.0499999999999998,{"$f":"I22&\"AM\"","v":"2,05AM"},3.8]
[null,null,null,null,null,null,null,null,2.0499999999999998,{"$f":"I23&\"GT\"","v":"2,05GT"},9.6]
[null,null,null,null,null,null,null,null,1.44,{"$f":"I24&\"F\"","v":"1,44F"},2]
[null,null,null,null,null,null,null,null,1.44,{"$f":"I25&\"AM\"","v":"1,44AM"},3.8]
[null,null,null,null,null,null,null,null,1.44,{"$f":"I26&\"GT\"","v":"1,44GT"},9.6]

{"sheet":"Berechnungen","index":3,"n_rows":44,"n_cols":8,"rows_kept":44,"cut":false,"hidden":true,"merged":[[0,0,0,1],[6,0,6,1],[0,3,0,4],[15,0,15,3],[15,4,15,7],[39,0,39,1],[36,0,36,1],[22,4,22,5],[38,0,38,1],[12,0,12,1]]}
["Berechnung Tagegeld",null,null,"Datenebankfelder"]
["volle KT",{"$f":"ROUND(IF(Eingabe!B7=\"Ja\",IF((Eingabe!B13-Eingabe!B10-1)<1,0,IF(Eingabe!B13=Eingabe!B10,0,(Eingabe!B13-Eingabe!B10-1)*'Dropdown usw.'!B4))*0.7,IF((Eingabe!B13-Eingabe!B10-1)<1,0,IF(Eingabe!B13=Eingabe!B10,0,(Eingabe!B13-Eingabe!B10-1)*'Dropdown usw.'!B4))),2)","v":0},null,1,{"$f":"IF(Eingabe!B10=Eingabe!B13,Eingabe!B14-Eingabe!B11,D2-Eingabe!B11)","v":0}]
["Erster Tag",{"$f":"ROUND(IF(Eingabe!B7=\"Ja\",IF(Berechnungen!E2>'Dropdown usw.'!A2=AND(Berechnungen!E2<='Dropdown usw.'!A3),'Dropdown usw.'!B2,IF(Berechnungen!E2>'Dropdown usw.'!A3,'Dropdown usw.'!B3,0))*0.7,IF(Berechnungen!E2>'Dropdown usw.'!A2=AND(Berechnungen!E2<='Dropdown usw.'!A3),'Dropdown usw.'!B2,IF(Berechnungen!E2>'Dropdown usw.'!A3,'Dropdown usw.'!B3,0))),2)","v":0},null,null,{"$f":"IF(Eingabe!B10=Eingabe!B13,0,Eingabe!B14)","v":0}]
["Letzter Tag",{"$f":"ROUND(IF(Eingabe!B7=\"Ja\",IF(Berechnungen!E3=0,0,IF(Berechnungen!E3>'Dropdown usw.'!A2=AND(Berechnungen!E3<='Dropdown usw.'!A3),'Dropdown usw.'!B2,IF(Berechnungen!E3>'Dropdown usw.'!A3,'Dropdown usw.'!B3,0)))*0.7,IF(Berechnungen!E3=0,0,IF(Berechnungen!E3>'Dropdown usw.'!A2=AND(Berechnungen!E3<='Dropdown usw.'!A3),'Dropdown usw.'!B2,IF(Berechnungen!E3>'Dropdown usw.'!A3,'Dropdown usw.'!B3,0)))),2)","v":0},null,"Ü-Reise",{"$f":"IF(AND(Eingabe!B11>'Dropdown usw.'!A6,Eingabe!B14<'Dropdown usw.'!A7,Eingabe!B22=\"Nein\",Eingabe!B13-Eingabe!B10=1),(Berechnungen!E2+Berechnungen!E3),0)","v":0}]
["Tagegelder",{"$f":"IF(E4=0,SUM(B2:B4),IF(AND(Berechnungen!E4<='Dropdown usw.'!A3,Berechnungen!E4>'Dropdown usw.'!A2),'Dropdown usw.'!B2,IF(Berechnungen!E4>'Dropdown usw.'!A3,'Dropdown usw.'!B3,0)))","v":0}]
[]
["Berechnung Wegstrecke"]
["Wegstrecke",{"$f":"IF(Eingabe!B28=\"\",0,VLOOKUP(Eingabe!B28,'Dropdown usw.'!$D$2:$E$14,2,FALSE)*Eingabe!B29)","v":0}]
["Gepäck",{"$f":"IF(AND(Eingabe!B30='Dropdown usw.'!F3,OR(Eingabe!B28='Dropdown usw.'!D3,Eingabe!B28='Dropdown usw.'!D4,Eingabe!B28='Dropdown usw.'!D5,Eingabe!A66='Dropdown usw.'!D6)),Eingabe!B29*'Dropdown usw.'!G3,IF(AND(Eingabe!B30='Dropdown usw.'!F4,OR(Eingabe!B28='Dropdown usw.'!D3,Eingabe!B28='Dropdown usw.'!D4,Eingabe!B28='Dropdown usw.'!D5,Eingabe!A66='Dropdown usw.'!D6)),Eingabe!B29*'Dropdown usw.'!G4,IF(AND(Eingabe!B30='Dropdown usw.'!F3,OR(Eingabe!B28='Dropdown usw.'!D8,Eingabe!B28='Dropdown usw.'!D9,Eingabe!B28='Dropdown usw.'!D10,Eingabe!B28='Dropdown usw.'!D11)),Eingabe!B29*'Dropdown usw.'!G5,IF(AND(Eingabe!B30='Dropdown usw.'!F4,OR(Eingabe!B28='Dropdown usw.'!D8,Eingabe!B28='Dropdown usw.'!D9,Eingabe!B28='Dropdown usw.'!D10,Eingabe!B28='Dropdown usw.'!D11)),Eingabe!B29*'Dropdown usw.'!G6,0))))","v":0}]
["Mitfahrer",{"$f":"IF(OR(Eingabe!B28='Dropdown usw.'!D3,Eingabe!B28='Dropdown usw.'!D4,Eingabe!B28='Dropdown usw.'!D5,Eingabe!B28='Dropdown usw.'!D6,Eingabe!B28='Dropdown usw.'!D8,Eingabe!B28='Dropdown usw.'!D9,Eingabe!B28='Dropdown usw.'!D10,Eingabe!B28='Dropdown usw.'!D11),0.02*Eingabe!B33*Eingabe!B32,0)","v":0}]
["Summe Wegstrecke",{"$f":"SUM(B8:B10)","v":0}]
[]
["Ermittlung Hotelkosten"]
["Hotelkosten",{"$f":"IF(AND(Eingabe!B42=\"Ja\",Eingabe!B43=\"Ja\"),SUM(Eingabe!B44:B45),Eingabe!B44)","v":0}]
[]
["Ermittlung Abzüge ohne Übernachtreise",null,null,null,"Ermittlung Abzüge Übernachtreise"]
["Erster Tag",{"$f":"IF(AND(Eingabe!B24=\"Ja\",A18>43145),0,IF(AND(ROUND(IF(Eingabe!B7=\"Ja\",IF(Berechnungen!E2>'Dropdown usw.'!A2=AND(Berechnungen!E2<='Dropdown usw.'!A3),'Dropdown usw.'!B2,IF(Berechnungen!E2>'Dropdown usw.'!A3,'Dropdown usw.'!B3,0))*0.7,IF(Berechnungen!E2>'Dropdown usw.'!A2=AND(Berechnungen!E2<='Dropdown usw.'!A3),'Dropdown usw.'!B2,IF(Berechnungen!E2>'Dropdown usw.'!A3,'Dropdown usw.'!B3,0))),2)>0,Eingabe!B23=\"Ja\"),IF(Eingabe!B7=\"Ja\",ROUND('Dropdown usw.'!B5*0.7,2),'Dropdown usw.'!B5),ROUND(IF(Eingabe!B7=\"Ja\",IF(Berechnungen!E2>'Dropdown usw.'!A2=AND(Berechnungen!E2<='Dropdown usw.'!A3),'Dropdown usw.'!B2,IF(Berechnungen!E2>'Dropdown usw.'!A3,'Dropdown usw.'!B3,0))*0.7,IF(Berechnungen!E2>'Dropdown usw.'!A2=AND(Berechnungen!E2<='Dropdown usw.'!A3),'Dropdown usw.'!B2,IF(Berechnungen!E2>'Dropdown usw.'!A3,'Dropdown usw.'!B3,0))),2)))","v":0},{"$f":"IF(B17=0,0,B17&\"F\")","v":0},{"$f":"IF(Eingabe!B49=\"Ja\",VLOOKUP(Berechnungen!C17,'Dropdown usw.'!$J$2:$K$26,2,FALSE),0)","v":0},"Erster Tag",{"$f":"IF(AND(Eingabe!B24=\"Ja\",Berechnungen!E18>43145),0,IF(AND(IF(AND(Berechnungen!E4<='Dropdown usw.'!A3,Berechnungen!E4>'Dropdown usw.'!A2),'Dropdown usw.'!B2,IF(Berechnungen!E4>'Dropdown usw.'!A3,'Dropdown usw.'!B3,0))>0,Eingabe!B23=\"Ja\"),IF(Eingabe!B7=\"Ja\",ROUND('Dropdown usw.'!B5*0.7,2),'Dropdown usw.'!B5),IF(AND(Berechnungen!E4<='Dropdown usw.'!A3,Berechnungen!E4>'Dropdown usw.'!A2),'Dropdown usw.'!B2,IF(Berechnungen!E4>'Dropdown usw.'!A3,'Dropdown usw.'!B3,0))))","v":0},{"$f":"IF($F$17=0,0,$F$17&\"F\")","v":0},{"$f":"IF(Eingabe!$B49=\"Ja\",VLOOKUP(Berechnungen!G17,'Dropdown usw.'!$J$2:$K$26,2,FALSE),0)","v":0}]
[{"$f":"Eingabe!B10","v":"00:00:00"},null,{"$f":"IF(B17=0,0,B17&\"AM\")","v":0},{"$f":"IF(Eingabe!B50=\"Ja\",VLOOKUP(Berechnungen!C18,'Dropdown usw.'!$J$2:$K$26,2,FALSE),0)","v":0},{"$f":"IF(AND(E2>E3,E4>0),Eingabe!B10,Eingabe!B13)","v":"00:00:00"},null,{"$f":"IF($F$17=0,0,$F$17&\"AM\")","v":0},{"$f":"IF(Eingabe!$B50=\"Ja\",VLOOKUP(Berechnungen!G18,'Dropdown usw.'!$J$2:$K$26,2,FALSE),0)","v":0}]
[null,null,{"$f":"IF(B17=0,0,B17&\"AM\")","v":0},{"$f":"IF(Eingabe!B51=\"Ja\",VLOOKUP(Berechnungen!C19,'Dropdown usw.'!$J$2:$K$26,2,FALSE),0)","v":0},null,null,{"$f":"IF($F$17=0,0,$F$17&\"AM\")","v":0},{"$f":"IF(Eingabe!$B51=\"Ja\",VLOOKUP(Berechnungen!G19,'Dropdown usw.'!$J$2:$K$26,2,FALSE),0)","v":0}]
[null,null,null,{"$f":"IF(SUM(D17:D19)>B17,B17,SUM(D17:D19))","v":0},"Zweiter Tag",null,{"$f":"IF($F$17=0,0,$F$17&\"F\")","v":0},{"$f":"IF(Eingabe!$B54=\"Ja\",VLOOKUP(Berechnungen!G20,'Dropdown usw.'!$J$2:$K$26,2,FALSE),0)","v":0}]
["1. Voller Tag",{"$f":"IF(AND(Eingabe!B24=\"Ja\",A22>43145),0,IF(AND(ROUND(IF(IF(Eingabe!B10=Eingabe!B13,0,Eingabe!B13-Eingabe!B10-1)>0,IF(Eingabe!B7=\"Ja\",'Dropdown usw.'!B4*0.7,'Dropdown usw.'!B4),0),2)>0,Eingabe!B23=\"Ja\"),IF(Eingabe!B7=\"Ja\",ROUND('Dropdown usw.'!B5*0.7,2),'Dropdown usw.'!B5),ROUND(IF(IF(Eingabe!B10=Eingabe!B13,0,Eingabe!B13-Eingabe!B10-1)>0,IF(Eingabe!B7=\"Ja\",'Dropdown usw.'!B4*0.7,'Dropdown usw.'!B4),0),2)))","v":0},{"$f":"IF(B21=0,0,B21&\"F\")","v":0},{"$f":"IF(AND(Eingabe!B42=\"Nein\",Eingabe!B43=\"Ja\"),0,IF(AND(IF(Eingabe!$B$10=Eingabe!$B$13,0,Eingabe!$B$13-Eingabe!$B$10-1)>0,Eingabe!$B54=\"Ja\"),VLOOKUP(C21,'Dropdown usw.'!$J$2:$K$26,2,FALSE),0))","v":0},{"$f":"IF(Eingabe!B13=E18,\"\",Eingabe!B13)","v":""},null,{"$f":"IF($F$17=0,0,$F$17&\"AM\")","v":0},{"$f":"IF(Eingabe!$B55=\"Ja\",VLOOKUP(Berechnungen!G21,'Dropdown usw.'!$J$2:$K$26,2,FALSE),0)","v":0}]
[{"$f":"IF(A18+1<Eingabe!B13,A18+1,\"\")","v":""},null,{"$f":"IF(B21=0,0,B21&\"AM\")","v":0},{"$f":"IF(AND(IF(Eingabe!$B$10=Eingabe!$B$13,0,Eingabe!$B$13-Eingabe!$B$10-1)>0,Eingabe!$B55=\"Ja\"),VLOOKUP(C22,'Dropdown usw.'!$J$2:$K$26,2,FALSE),0)","v":0},null,null,{"$f":"IF($F$17=0,0,$F$17&\"AM\")","v":0},{"$f":"IF(Eingabe!$B56=\"Ja\",VLOOKUP(Berechnungen!G22,'Dropdown usw.'!$J$2:$K$26,2,FALSE),0)","v":0}]
[null,null,{"$f":"IF(B21=0,0,B21&\"AM\")","v":0},{"$f":"IF(AND(IF(Eingabe!$B$10=Eingabe!$B$13,0,Eingabe!$B$13-Eingabe!$B$10-1)>0,Eingabe!$B56=\"Ja\"),VLOOKUP(C23,'Dropdown usw.'!$J$2:$K$26,2,FALSE),0)","v":0},"Summe Abzüge 2",null,null,{"$f":"-(IF(SUM(H17:H22)>F17,F17,SUM(H17:H22)))","v":0}]
[null,null,null,{"$f":"IF(SUM(D21:D23)>B21,B21,SUM(D21:D23))","v":0}]
["2. Voller Tag",{"$f":"IF(AND(Eingabe!B24=\"Ja\",A26>43145),0,IF(AND(ROUND(IF(IF(Eingabe!$B$10=Eingabe!$B$13,0,Eingabe!$B$13-Eingabe!$B$10-1)>1,IF(Eingabe!B7=\"Ja\",'Dropdown usw.'!B4*0.7,'Dropdown usw.'!B4),0),2)>0,Eingabe!B23=\"Ja\"),IF(Eingabe!B7=\"Ja\",ROUND('Dropdown usw.'!B5*0.7,2),'Dropdown usw.'!B5),ROUND(IF(IF(Eingabe!$B$10=Eingabe!$B$13,0,Eingabe!$B$13-Eingabe!$B$10-1)>1,IF(Eingabe!B7=\"Ja\",'Dropdown usw.'!B4*0.7,'Dropdown usw.'!B4),0),2)))","v":0},{"$f":"IF(B25=0,0,B25&\"F\")","v":0},{"$f":"IF(AND(Eingabe!B42=\"Nein\",Eingabe!B43=\"Ja\"),0,IF(AND(IF(Eingabe!$B$10=Eingabe!$B$13,0,Eingabe!$B$13-Eingabe!$B$10-1)>1,Eingabe!$B59=\"Ja\"),VLOOKUP(C25,'Dropdown usw.'!$J$2:$K$26,2,FALSE),0))","v":0}]
[{"$f":"IF(A18+2<Eingabe!B13,A18+2,\"\")","v":""},null,{"$f":"IF(B25=0,0,B25&\"AM\")","v":0},{"$f":"IF(AND(IF(Eingabe!$B$10=Eingabe!$B$13,0,Eingabe!$B$13-Eingabe!$B$10-1)>1,Eingabe!$B60=\"Ja\"),VLOOKUP(C26,'Dropdown usw.'!$J$2:$K$26,2,FALSE),0)","v":0}]
[null,null,{"$f":"IF(B25=0,0,B25&\"AM\")","v":0},{"$f":"IF(AND(IF(Eingabe!$B$10=Eingabe!$B$13,0,Eingabe!$B$13-Eingabe!$B$10-1)>1,Eingabe!$B61=\"Ja\"),VLOOKUP(C27,'Dropdown usw.'!$J$2:$K$26,2,FALSE),0)","v":0}]
[null,null,null,{"$f":"IF(SUM(D25:D27)>B25,B25,SUM(D25:D27))","v":0}]
["3. Voller Tag",{"$f":"IF(AND(Eingabe!B24=\"Ja\",A30>43145),0,IF(AND(ROUND(IF(IF(Eingabe!$B$10=Eingabe!$B$13,0,Eingabe!$B$13-Eingabe!$B$10-1)>2,IF(Eingabe!B7=\"Ja\",'Dropdown usw.'!B4*0.7,'Dropdown usw.'!B4),0),2)>0,Eingabe!B23=\"Ja\"),IF(Eingabe!B7=\"Ja\",ROUND('Dropdown usw.'!B5*0.7,2),'Dropdown usw.'!B5),ROUND(IF(IF(Eingabe!$B$10=Eingabe!$B$13,0,Eingabe!$B$13-Eingabe!$B$10-1)>2,IF(Eingabe!B7=\"Ja\",'Dropdown usw.'!B4*0.7,'Dropdown usw.'!B4),0),2)))","v":0},{"$f":"IF(B29=0,0,B29&\"F\")","v":0},{"$f":"IF(AND(Eingabe!B42=\"Nein\",Eingabe!B43=\"Ja\"),0,IF(AND(IF(Eingabe!$B$10=Eingabe!$B$13,0,Eingabe!$B$13-Eingabe!$B$10-1)>2,Eingabe!$B64=\"Ja\"),VLOOKUP(C29,'Dropdown usw.'!$J$2:$K$26,2,FALSE),0))","v":0}]
[{"$f":"IF(A18+3<Eingabe!B13,A18+3,\"\")","v":""},null,{"$f":"IF(B29=0,0,B29&\"AM\")","v":0},{"$f":"IF(AND(IF(Eingabe!$B$10=Eingabe!$B$13,0,Eingabe!$B$13-Eingabe!$B$10-1)>2,Eingabe!$B65=\"Ja\"),VLOOKUP(C30,'Dropdown usw.'!$J$2:$K$26,2,FALSE),0)","v":0}]
[null,null,{"$f":"IF(B29=0,0,B29&\"AM\")","v":0},{"$f":"IF(AND(IF(Eingabe!$B$10=Eingabe!$B$13,0,Eingabe!$B$13-Eingabe!$B$10-1)>2,Eingabe!$B66=\"Ja\"),VLOOKUP(C31,'Dropdown usw.'!$J$2:$K$26,2,FALSE),0)","v":0}]
[null,null,null,{"$f":"IF(SUM(D29:D31)>B29,B29,SUM(D29:D31))","v":0}]
["Letzter Tag",{"$f":"IF(AND(Eingabe!B24=\"Ja\",A34>43145),0,IF(AND(ROUND(IF(Eingabe!B7=\"Ja\",IF(Berechnungen!E3=0,0,IF(Berechnungen!E3>'Dropdown usw.'!A2=AND(Berechnungen!E3<='Dropdown usw.'!A3),'Dropdown usw.'!B2,IF(Berechnungen!E3>'Dropdown usw.'!A3,'Dropdown usw.'!B3,0)))*0.7,IF(Berechnungen!E3=0,0,IF(Berechnungen!E3>'Dropdown usw.'!A2=AND(Berechnungen!E3<='Dropdown usw.'!A3),'Dropdown usw.'!B2,IF(Berechnungen!E3>'Dropdown usw.'!A3,'Dropdown usw.'!B3,0)))),2)>0,Eingabe!B23=\"Ja\"),IF(Eingabe!B7=\"Ja\",ROUND('Dropdown usw.'!B5*0.7,2),'Dropdown usw.'!B5),ROUND(IF(Eingabe!B7=\"Ja\",IF(Berechnungen!E3=0,0,IF(Berechnungen!E3>'Dropdown usw.'!A2=AND(Berechnungen!E3<='Dropdown usw.'!A3),'Dropdown usw.'!B2,IF(Berechnungen!E3>'Dropdown usw.'!A3,'Dropdown usw.'!B3,0)))*0.7,IF(Berechnungen!E3=0,0,IF(Berechnungen!E3>'Dropdown usw.'!A2=AND(Berechnungen!E3<='Dropdown usw.'!A3),'Dropdown usw.'!B2,IF(Berechnungen!E3>'Dropdown usw.'!A3,'Dropdown usw.'!B3,0)))),2)))","v":0},{"$f":"IF(B33=0,0,B33&\"F\")","v":0},{"$f":"IF(OR(AND(Eingabe!B42=\"Nein\",Eingabe!B43=\"Nein\"),AND(Eingabe!B42=\"Nein\",Eingabe!B43=\"Ja\")),'Dropdown usw.'!K8,IF(AND(Eingabe!B42=\"Nein\",Eingabe!B43=\"Ja\"),0,IF(AND(IF(Eingabe!$B$10=Eingabe!$B$13,0,Eingabe!$B$13-Eingabe!$B$10-1)=0,Eingabe!$B54=\"Ja\"),VLOOKUP(Berechnungen!C33,'Dropdown usw.'!$J$2:$K$26,2,FALSE),IF(AND(IF(Eingabe!$B$10=Eingabe!$B$13,0,Eingabe!$B$13-Eingabe!$B$10-1)=1,Eingabe!$B59=\"Ja\"),VLOOKUP(Berechnungen!C33,'Dropdown usw.'!$J$2:$K$26,2,FALSE),IF(AND(IF(Eingabe!$B$10=Eingabe!$B$13,0,Eingabe!$B$13-Eingabe!$B$10-1)=2,Eingabe!$B64=\"Ja\"),VLOOKUP(Berechnungen!C33,'Dropdown usw.'!$J$2:$K$26,2,FALSE),IF(AND(IF(Eingabe!$B$10=Eingabe!$B$13,0,Eingabe!$B$13-Eingabe!$B$10-1)=3,Eingabe!$B69=\"Ja\"),VLOOKUP(Berechnungen!C33,'Dropdown usw.'!$J$2:$K$26,2,FALSE),0))))))","v":0}]
[{"$f":"Eingabe!B13","v":"00:00:00"},null,{"$f":"IF(B33=0,0,B33&\"AM\")","v":0},{"$f":"IF(AND(IF(Eingabe!$B$10=Eingabe!$B$13,0,Eingabe!$B$13-Eingabe!$B$10-1)=0,Eingabe!$B55=\"Ja\"),VLOOKUP(Berechnungen!C34,'Dropdown usw.'!$J$2:$K$26,2,FALSE),IF(AND(IF(Eingabe!$B$10=Eingabe!$B$13,0,Eingabe!$B$13-Eingabe!$B$10-1)=1,Eingabe!$B60=\"Ja\"),VLOOKUP(Berechnungen!C34,'Dropdown usw.'!$J$2:$K$26,2,FALSE),IF(AND(IF(Eingabe!$B$10=Eingabe!$B$13,0,Eingabe!$B$13-Eingabe!$B$10-1)=2,Eingabe!$B65=\"Ja\"),VLOOKUP(Berechnungen!C34,'Dropdown usw.'!$J$2:$K$26,2,FALSE),IF(AND(IF(Eingabe!$B$10=Eingabe!$B$13,0,Eingabe!$B$13-Eingabe!$B$10-1)=3,Eingabe!$B70=\"Ja\"),VLOOKUP(Berechnungen!C34,'Dropdown usw.'!$J$2:$K$26,2,FALSE),0))))","v":0}]
[null,null,{"$f":"IF(B33=0,0,B33&\"AM\")","v":0},{"$f":"IF(AND(IF(Eingabe!$B$10=Eingabe!$B$13,0,Eingabe!$B$13-Eingabe!$B$10-1)=0,Eingabe!$B56=\"Ja\"),VLOOKUP(Berechnungen!C35,'Dropdown usw.'!$J$2:$K$26,2,FALSE),IF(AND(IF(Eingabe!$B$10=Eingabe!$B$13,0,Eingabe!$B$13-Eingabe!$B$10-1)=1,Eingabe!$B61=\"Ja\"),VLOOKUP(Berechnungen!C35,'Dropdown usw.'!$J$2:$K$26,2,FALSE),IF(AND(IF(Eingabe!$B$10=Eingabe!$B$13,0,Eingabe!$B$13-Eingabe!$B$10-1)=2,Eingabe!$B66=\"Ja\"),VLOOKUP(Berechnungen!C35,'Dropdown usw.'!$J$2:$K$26,2,FALSE),IF(AND(IF(Eingabe!$B$10=Eingabe!$B$13,0,Eingabe!$B$13-Eingabe!$B$10-1)=3,Eingabe!$B71=\"Ja\"),VLOOKUP(Berechnungen!C35,'Dropdown usw.'!$J$2:$K$26,2,FALSE),0))))","v":0}]
[null,null,null,{"$f":"IF(SUM(D33:D35)>B33,B33,SUM(D33:D35))","v":0}]
["Summe Abzüge 1",null,null,{"$f":"-(SUM(D36,D32,D28,D24,D20))","v":0}]
[]
["Berücksichtigte Abzüge",null,null,{"$f":"IF(AND(Eingabe!B25=\"Ja\",Berechnungen!B14=0),0,IF(E4=0,D37,H23))","v":0}]
["Berücksichtigte Tagegelder",null,null,{"$f":"IF(Eingabe!B25=\"Ja\",0,IF(E4=0,SUM(B17:B33),IF(AND(Eingabe!B24=\"Ja\",Berechnungen!E18>43145),0,IF(AND(IF(AND(Berechnungen!E4<='Dropdown usw.'!A3,Berechnungen!E4>'Dropdown usw.'!A2),'Dropdown usw.'!B2,IF(Berechnungen!E4>'Dropdown usw.'!A3,'Dropdown usw.'!B3,0))>0,Eingabe!B23=\"Ja\"),IF(Eingabe!B7=\"Ja\",ROUND('Dropdown usw.'!B5*0.7,2),'Dropdown usw.'!B5),IF(AND(Berechnungen!E4<='Dropdown usw.'!A3,Berechnungen!E4>'Dropdown usw.'!A2),'Dropdown usw.'!B2,IF(Berechnungen!E4>'Dropdown usw.'!A3,'Dropdown usw.'!B3,0))))))","v":0}]
[]
["Ausblenden Abzüge",{"$f":"IF(Eingabe!B10=Eingabe!B13,1,Eingabe!B13-Eingabe!B10+1)","v":1}]
["Ausblenden Wohnort",{"$f":"IF(Eingabe!A23='Dropdown usw.'!L2,1,2)","v":1}]
["Ausblenden Hotel",{"$f":"IF(OR(Eingabe!B10<>Eingabe!B13,Eingabe!B22=\"Ja\"),2,1)","v":1}]